{"text_format":"1","workbook":"xlsx","n_sheets":1,"sheets":["Grille budgétaire de mariage"],"not_rendered":{"charts":0,"images":1,"macros":1,"external_links":0,"defined_names":0,"comments":0,"pivot_tables":0},"unopened":[],"bounds":{"document_bytes":16777216,"sheet_cells":100000,"rows_first":2000,"rows_last":500,"rows_between":2000,"halvings":0,"cell_chars":16384,"cell_head_chars":4096},"cells_cut":0,"cells_raw":0,"read":"whole","date_system":"1900"}

{"sheet":"Grille budgétaire de mariage","index":0,"n_rows":68,"n_cols":7,"rows_kept":68,"cut":false,"hidden":false,"merged":[[52,2,54,2],[56,2,60,2],[52,3,54,3],[56,3,60,3],[67,3,67,6],[3,1,3,6],[5,4,5,6],[5,1,5,3],[4,1,4,6],[50,1,50,6],[7,1,7,6],[9,3,14,3],[16,3,21,3],[23,3,25,3],[27,3,32,3],[38,3,42,3],[44,3,47,3],[34,3,36,3]]}
[]
[]
[null,"Grille budgétaire de mariage"]
[null,"Le Fonds de solidarité FTQ vous aide à mieux gérer votre budget de mariage et à suivre vos dépenses. Remplissez les champs jaunes et adaptez la grille budgétaire selon vos besoins."]
[null,"Mon mariage"]
[null,"Budget total prévu"]
[null,"Dépenses (% recommandé)","Budget prévu en % (À ajuster selon vos préférences)","Budget prévu en $","Budget réel en $","Dépenses réelles en $","Différence entre le budget réel et les dépenses réelles en $"]
[null,"Dépenses à considérer"]
[null,"Cérémonie (5 %)",0.05,{"$f":"$E$6*$C9","v":0},{"$f":"SUM(E10:E15)","v":0},{"$f":"SUM(F10:F15)","v":0},{"$f":"F9-E9","v":0}]
[null,"Location du lieu de la cérémonie",null,{"$f":"\"Le total de cette catégorie doit correspondre à environ \"&TEXT(IF(C9<>0,C9,0),\"##0 %\")&\" de votre budget de mariage\"&IF($E$6>0,\", soit \"&TEXT(D9,\"# ##0 $\")&\".\",\".\")","v":"Le total de cette catégorie doit correspondre à environ 5 % de votre budget de mariage."},null,null,{"$f":"F10-E10","v":0}]
[null,"Célébrant(e)",null,null,null,null,{"$f":"F11-E11","v":0}]
[null,"Permis de mariage",null,null,null,null,{"$f":"F12-E12","v":0}]
[null,"Alliances",null,null,null,null,0]
[null,"Répétition de la cérémonie",null,null,null,null,0]
[null,"Autres frais",null,null,null,null,0]
[null,"Réception (50 %)",0.5,{"$f":"$E$6*$C16","v":0},{"$f":"SUM(E17:E22)","v":0},{"$f":"SUM(F17:F22)","v":0},{"$f":"F16-E16","v":0}]
[null,"Location de la salle ",null,{"$f":"\"Le total de cette catégorie doit correspondre à environ \"&TEXT(IF(C16<>0,C16,0),\"##0 %\")&\" de votre budget de mariage\"&IF($E$6>0,\", soit \"&TEXT(D16,\"# ##0 $\")&\".\",\".\")","v":"Le total de cette catégorie doit correspondre à environ 50 % de votre budget de mariage."},null,null,{"$f":"F17-E17","v":0}]
[null,"Montage de la salle",null,null,null,null,{"$f":"F18-E18","v":0}]
[null,"Traiteur",null,null,null,null,0]
[null,"Gâteau",null,null,null,null,0]
[null,"Service de bar et serveurs",null,null,null,null,0]
[null,"Autres frais",null,null,null,null,0]
[null,"Souvenirs (10 %)",0.1,{"$f":"$E$6*$C23","v":0},{"$f":"SUM(E24:E26)","v":0},{"$f":"SUM(F24:F26)","v":0},{"$f":"F23-E23","v":0}]
[null,"Photographe",null,{"$f":"\"Le total de cette catégorie doit correspondre à environ \"&TEXT(IF(C23<>0,C23,0),\"##0 %\")&\" de votre budget de mariage\"&IF($E$6>0,\", soit \"&TEXT(D23,\"# ##0 $\")&\".\",\".\")","v":"Le total de cette catégorie doit correspondre à environ 10 % de votre budget de mariage."},null,null,{"$f":"F24-E24","v":0}]
[null,"Vidéaste",null,null,null,null,{"$f":"F25-E25","v":0}]
[null,"Autres frais",null,null,null,null,0]
[null,"Fleurs et décoration (10 %)",0.1,{"$f":"$E$6*$C27","v":0},{"$f":"SUM(E28:E33)","v":0},{"$f":"SUM(F28:F33)","v":0},{"$f":"F27-E27","v":0}]
[null,"Bouquets ",null,{"$f":"\"Le total de cette catégorie doit correspondre à environ \"&TEXT(IF(C27<>0,C27,0),\"##0 %\")&\" de votre budget de mariage\"&IF($E$6>0,\", soit \"&TEXT(D27,\"# ##0 $\")&\".\",\".\")","v":"Le total de cette catégorie doit correspondre à environ 10 % de votre budget de mariage."},null,null,{"$f":"F28-E28","v":0}]
[null,"Boutonnières",null,null,null,null,0]
[null,"Centres de table",null,null,null,null,0]
[null,"Tables et chaises",null,null,null,null,0]
[null,"Nappes",null,null,null,null,0]
[null,"Autres frais",null,null,null,null,0]
[null,"Musique (7 %)",7.0000000000000007E-2,{"$f":"$E$6*$C34","v":0},{"$f":"SUM(E35:E36)","v":0},{"$f":"SUM(F35:F36)","v":0},{"$f":"F34-E34","v":0}]
[null,"Musique pour la cérémonie ",null,{"$f":"\"Le total de cette catégorie doit correspondre à environ \"&TEXT(IF(C34<>0,C34,0),\"##0 %\")&\" de votre budget de mariage\"&IF($E$6>0,\", soit \"&TEXT(D34,\"# ##0 $\")&\".\",\".\")","v":"Le total de cette catégorie doit correspondre à environ 7 % de votre budget de mariage."},null,null,0]
[null,"Musique pour la réception",null,null,null,null,0]
[null,"Autres frais",null,null,null,null,0]
[null,"Tenues de mariage (10 %)",0.1,{"$f":"$E$6*$C38","v":0},{"$f":"SUM(E39:E43)","v":0},{"$f":"SUM(F39:F43)","v":0},0]
[null,"Habits de mariage",null,{"$f":"\"Le total de cette catégorie doit correspondre à environ \"&TEXT(IF(C38<>0,C38,0),\"##0 %\")&\" de votre budget de mariage\"&IF($E$6>0,\", soit \"&TEXT(D38,\"# ##0 $\")&\".\",\".\")","v":"Le total de cette catégorie doit correspondre à environ 10 % de votre budget de mariage."},null,null,0]
[null,"Chaussures",null,null,null,null,{"$f":"F40-E40","v":0}]
[null,"Bijoux",null,null,null,null,0]
[null,"Coiffure et maquillage",null,null,null,null,0]
[null,"Autres frais",null,null,null,null,0]
[null,"Papeterie (3 %)",0.03,{"$f":"$E$6*$C44","v":0},{"$f":"SUM(E45:E48)","v":0},{"$f":"SUM(F45:F48)","v":0},{"$f":"F44-E44","v":0}]
[null,"Invitations et faireparts",null,{"$f":"\"Le total de cette catégorie doit correspondre à environ \"&TEXT(IF(C44<>0,C44,0),\"##0 %\")&\" de votre budget de mariage\"&IF($E$6>0,\", soit \"&TEXT(D44,\"# ##0 $\")&\".\",\".\")","v":"Le total de cette catégorie doit correspondre à environ 3 % de votre budget de mariage."},null,null,0]
[null,"Marque-places",null,null,null,null,{"$f":"F46-E46","v":0}]
[null,"Cartes de remerciements",null,null,null,null,{"$f":"F47-E47","v":0}]
[null,"Autres frais",null,null,null,null,0]
[null,"Coussin de sécurité (5 %)",0.05,{"$f":"$E$6*$C49","v":0},{"$f":"SUM(E50)","v":0},{"$f":"SUM(F51:F53)","v":0},{"$f":"F49-E49","v":0}]
[null,"Imprévus",null,{"$f":"\"Le total de cette catégorie doit correspondre à environ \"&TEXT(IF(C49<>0,C49,0),\"##0 %\")&\" de votre budget de mariage\"&IF($E$6>0,\", soit \"&TEXT(D49,\"# ##0 $\")&\".\",\".\")","v":"Le total de cette catégorie doit correspondre à environ 5 % de votre budget de mariage."},null,null,{"$f":"F50-E50","v":0}]
[null,"Dépenses supplémentaires selon vos préférences"]
[null,"Autres (% variable)",0,{"$f":"$E$6*$C52","v":0},{"$f":"SUM(E53:E55)","v":0},{"$f":"SUM(F53:F55)","v":0},{"$f":"F52-E52","v":0}]
[null,"Planificateur(trice) de mariage","À vous de définir le pourcentage du budget total que vous souhaitez attribuer à cette catégorie!",{"$f":"IF(C52>0,\"Le total de cette catégorie doit être égal à environ \"&TEXT(IF(C52<>0,C52,0),\"##0 %\")&\" de votre budget de mariage\"&IF($E$6>0,\", soit \"&TEXT(D52,\"# ##0 $\")&\".\",\".\"),\"\")","v":""},null,null,{"$f":"F53-E53","v":0}]
[null,"Transport (stationnement, navette, etc.)",null,null,null,null,{"$f":"F54-E54","v":0}]
[null,"Autres frais",null,null,null,null,0]
[null,"Voyage de noces (% variable)",0,{"$f":"$E$6*$C56","v":0},{"$f":"SUM(E57:E61)","v":0},{"$f":"SUM(F57:F61)","v":0},{"$f":"F56-E56","v":0}]
[null,"Billets d'avion","À vous de définir le pourcentage du budget total que vous souhaitez attribuer à cette catégorie!",{"$f":"IF(C56>0,\"Le total de cette catégorie doit être égal à environ \"&TEXT(IF(C56<>0,C56,0),\"##0 %\")&\" de votre budget de mariage\"&IF($E$6>0,\", soit \"&TEXT(D56,\"# ##0 $\")&\".\",\".\"),\"\")","v":""},null,null,{"$f":"F57-E57","v":0}]
[null,"Hébergement",null,null,null,null,{"$f":"F58-E58","v":0}]
[null,"Activités",null,null,null,null,{"$f":"F59-E59","v":0}]
[null,"Repas",null,null,null,null,{"$f":"F60-E60","v":0}]
[null,"Autres frais",null,null,null,null,{"$f":"F61-E61","v":0}]
[null,"Sommaire","Budget prévu en %","Budget prévu en $","Budget réel en $","Dépenses réelles en $","Différence entre le budget réel et les dépenses réelles en $"]
[null,{"$f":"B6","v":"Budget total prévu"},{"$f":"SUM(C9,C16,C23,C27,C34,C38,C44,C49)","v":1},{"$f":"SUM(D9,D16,D23,D27,D34,D38,D44,D49)","v":0},{"$f":"SUM(E9,E16,E23,E27,E34,E38,E44,E49)","v":0},{"$f":"SUM(F9,F16,F23,F27,F34,F38,F44, F49)","v":0},{"$f":"IF(F63<>0,F63-E63,\"\")","v":""}]
[null,{"$f":"B51","v":"Dépenses supplémentaires selon vos préférences"},{"$f":"SUM(C52,C56)","v":0},{"$f":"SUM(D52,D56)","v":0},{"$f":"SUM(E52,E56)","v":0},{"$f":"SUM(F52,F56)","v":0},{"$f":"IF(F64<>0,F64-E64,\"\")","v":""}]
[null,"TOTAL",{"$f":"SUM(C63:C64)","v":1},{"$f":"SUM(D63:D64)","v":0},{"$f":"SUM(E63:E64)","v":0},0,{"$f":"IF(F65<>0,F65-E65,\"\")","v":""}]
[]
[null,null,null,{"$f":"IF(C65>1,\"Oups!! vos % de budget dépassent 100 %.\",IF(C65<1,\"Oups vos % de budget n'atteignent pas 100 %.\",\"\"))","v":""}]
[null,null,null,{"$f":"IF(AND($E$65>0,$F$65>0),IF($E$65>=$F$65,\"Félicitations, vous avez respecté votre budget de mariage!\",\"Attention, vous avez dépensé \"&TEXT($G$65,\"_ * # ##0 $\")&\" de plus que prévu!\"),\"\")","v":""}]